Cogmind - Beta 11.1 @@@ ROGUE MODE // 2022.05.28 @ 00:20:27 Player: Ruxi Result: Destroyed by 8R-AWN with 8R-AWN's Boregun Performance ------------- Evolutions (0) 0 Regions Visited (3) 600 Robots Destroyed (14) 70 Value Destroyed (229) 229 Prototype IDs (23) 460 Alien Tech Used (0) 0 Bonus (300) 300 TOTAL SCORE: 1659 Bonus ------- Aligned with FarCom 300 Cogmind --------- Core Integrity 0/250 Matter 26/300 Energy 250/250 System Corruption 1% Temperature Cool (0) Movement Treading (160) Location -10/Exiles Parts ------- > --- POWER (1) -------- Ion Engine > --- PROPULSION (2) --- Improved Treads Improved Treads > --- UTILITY (2) ------ Large Storage Unit High-powered Tractor Beam > --- WEAPON (2) ------- AWS/Gauss > --- INVENTORY (15) --- Light Treads Hacking Suite Army-in-a-Box (30/30) Assault Rifle Light Assault Rifle Light Assault Rifle Light Assault Rifle Light Assault Rifle Grenade Launcher Rocket Launcher Peak State ------------ > --- POWER ------------ Ion Engine > --- PROPULSION ------- Improved Treads Improved Treads > --- UTILITY ---------- Large Storage Unit High-powered Tractor Beam > --- WEAPON ----------- AWS/Gauss > --- INVENTORY -------- Improved Treads Hacking Suite Army-in-a-Box Assault Rifle Light Assault Rifle Light Assault Rifle Light Assault Rifle Light Assault Rifle Grenade Launcher Rocket Launcher [Rating: 30] Favorites ----------- Power Light Ion Engine Engine Light Ion Engine Propulsion Light Treads Treads Light Treads Leg Aluminum Leg Utility Large Storage Unit Device High-powered Tractor Beam Storage Large Storage Unit Protection Weapon Shielding Weapon Light Assault Rifle Energy Gun Medium Laser Energy Cannon Particle Cannon Ballistic Gun Light Assault Rifle Launcher Grenade Launcher Build | -11 -10 -10 -10 ------- Run | Scr Mat Min Exi Slots Evolved . | . . . . Power . | . . . . Propulsion . | . . . . Utility . | . . . . Weapon . | . . . . Parts Attached 23 | . 11 4 8 Power 1 | . 1 . . Engine 1 | . 1 . . Core . | . . . . Reactor . | . . . . Propulsion 8 | . 4 . 4 Treads 8 | . 4 . 4 Leg . | . . . . Wheel . | . . . . Hover . | . . . . Flight . | . . . . Utility 3 | . 3 . . Device 1 | . 1 . . Storage 1 | . 1 . . Processor . | . . . . Hackware . | . . . . Protection 1 | . 1 . . Artifact . | . . . . Weapon 11 | . 3 4 4 Energy Gun 1 | . 1 . . Energy Cannon 1 | . . 1 . Ballistic Gun 6 | . 2 . 4 Ballistic Cannon . | . . . . Launcher 3 | . . 3 . Special Weapon . | . . . . Impact Weapon . | . . . . Slashing Weapon . | . . . . Piercing Weapon . | . . . . Special Melee Weapon . | . . . . Unidentified Prototypes . | . . . . Parts Lost 4 | . 1 . 3 Power . | . . . . Propulsion 2 | . . . 2 Utility 1 | . 1 . . Weapon 1 | . . . 1 Highest Loss Streak 3 | . 1 . 3 To Critical Strikes 3 | . . . 3 Average Slot Usage (%) 99 | . 99 100 96 Engine 14 | . 14 14 14 Treads 19 | . 15 28 27 Leg 8 | . 12 . . Device 6 | . 2 14 14 Storage 16 | . 18 14 14 Protection 4 | . 7 . . Ballistic Gun 19 | . 26 4 4 Launcher 7 | . . 21 21 Naked Turns . | . . . . Heaviest Build 36 | 11 31 33 36 Greatest Support 46 | 20 43 40 46 Greatest Overweight (x) 1 | . 1 . 1 Average Overweight (x) . | . . . . Largest Inventory Capacity 15 | . 15 15 15 Average Capacity 14 | . 14 15 15 Most Carried 15 | . 15 15 15 Average Carried 12 | . 11 14 14 Final Capacity 15 | 8 15 15 15 Final Carried 15 | 6 15 15 15 Class Distribution -------------------- 100% | Mutant Dominant Class ---------------- Mutant | -10/Materials Mutant | -10/Mines Mutant | -10/Exiles Resources | -11 -10 -10 -10 ----------- Run | Scr Mat Min Exi Matter Collected 442 | 200 239 3 . Remotely 74 | . 71 3 . Salvage Created 412 | . 388 12 12 Parts 33 | . 33 . . Haulers Intercepted 2 | . 2 . . Recyclers Shooed . | . . . . Parts Field Recycled . | . . . . Retrieved Matter . | . . . . Parts Self-Destructed . | . . . . Prevented . | . . . . Kills | -11 -10 -10 -10 ------- Run | Scr Mat Min Exi Combat Hostiles Destroyed 20 | . 10 3 7 Guns 10 | . 10 . . AOE 10 | . . 3 7 Classes Destroyed 6 | . 5 1 . Hauler 2 | . 2 . . Mechanic 1 | . 1 . . Operator 1 | . 1 . . Swarmer 6 | . 6 . . Grunt 4 | . 4 . . Assembled 10 | . . 3 7 Best Kill Streak 7 | . 3 2 7 Combat Bots Only 7 | . 3 2 7 Max Kills in Single Turn 3 | . 2 2 3 Gunslinging . | . . . . Exploded 3 | . . 2 3 Melee . | . . . . Uniques/NPCs Destroyed . | . . . . Combat | -11 -10 -10 -10 -------- Run | Scr Mat Min Exi Damage Taken 1243 | . 265 33 945 Core 270 | . 73 . 197 Absorbed by Shields . | . . . . Redirected to Shielding 12 | . 12 . . Core Remaining (%) 100 | 100 . . . Volleys Fired 51 | . 37 3 11 Largest 2 | . 2 2 2 Hottest 70 | . 70 63 63 Shots Fired 100 | . 74 6 20 Gun 86 | . 74 . 12 Cannon 1 | . . 1 . Launcher 13 | . . 5 8 Special . | . . . . Kinetic 83 | . 71 . 12 Thermal 4 | . 3 1 . Explosive 13 | . . 5 8 Electromagnetic . | . . . . Robot Hit Streak 11 | . 6 3 11 Robot Miss Streak 7 | . 7 1 1 Penetration Max . | . . . . Secondary Targets 1 | . 1 . . Max Gunslinging Chain 1 | . 1 . . Shots Hit Robots 49 | . 34 3 12 Core Hits 42 | . 20 4 18 Critical Kills 2 | . 2 . . Critical Parts Destroyed . | . . . . Critical Strikes 2 | . 2 . . Destroy 2 | . 2 . . Melee Attacks . | . . . . Impact . | . . . . Slashing . | . . . . Piercing . | . . . . Sneak Attacks . | . . . . Combat Hostiles . | . . . . Follow-up Attacks . | . . . . Damage Inflicted 1098 | . 372 226 500 Guns 497 | . 372 . 125 Cannons . | . . . . Explosions 601 | . . 226 375 Melee . | . . . . Ramming . | . . . . Kinetic 471 | . 346 . 125 Thermal 26 | . 26 . . Explosive 601 | . . 226 375 Electromagnetic . | . . . . Impact . | . . . . Slashing . | . . . . Piercing . | . . . . Highest Corruption 1 | . 1 1 1 Average Corruption 1 | . 1 1 1 Corruption Purged . | . . . . Corruption Blocked . | . . . . Effects 10 | . 5 1 4 Message Errors 3 | . 2 . 1 Matter Fused 2 | . 1 . 1 Heat Flow Errors 2 | . 2 . . Energy Discharges 1 | . . . 1 Misfires 2 | . . 1 1 Overload Shots . | . . . . Overflow Damage 6 | . . . 6 Projectiles . | . . . . Explosions 6 | . . . 6 Melee . | . . . . Knockbacks . | . . . . Impact . | . . . . Kinetic . | . . . . Secondary . | . . . . Self-Inflicted Damage . | . . . . Shots . | . . . . Rammed . | . . . . Targets Rammed . | . . . . Kicked . | . . . . Crushed . | . . . . Highest Temperature 149 | . 149 32 6 Average Temperature 29 | . 42 8 3 Received Heat Transfer 42 | . 42 . . Siege Activations . | . . . . Robots Corrupted . | . . . . Combat Hostiles . | . . . . Parts Fried . | . . . . Impact Corruptions . | . . . . Robots Melted . | . . . . Combat Hostiles . | . . . . Parts Melted . | . . . . Heat Transferred 74 | . 74 . . Parts Sabotaged . | . . . . Parts Stolen . | . . . . Parts Stripped . | . . . . Power Chain Reactions . | . . . . Missiles Intercepted . | . . . . Alert | -11 -10 -10 -10 ------- Run | Scr Mat Min Exi Peak Influence 207 | . 207 72 . Initial 3 | . . 3 . Average 55 | . 60 26 . Maximum Alert Level 1 | . 1 . . Low Security (%) 95 | . 94 100 . Level 1 4 | . 5 . . Level 2 . | . . . . Level 3 . | . . . . Level 4 . | . . . . Level 5 . | . . . . High Security . | . . . . Max Security . | . . . . Squads Dispatched 2 | . 2 . . Investigation 1 | . 1 . . Extermination . | . . . . Reinforcement 1 | . 1 . . Assault . | . . . . Garrison . | . . . . Intercept . | . . . . Searches Triggered . | . . . . Construction Impeded . | . . . . Haulers Reinforced . | . . . . Active Scanning Responses . | . . . . Cargo Convoy Interrupts . | . . . . Stealth | -11 -10 -10 -10 --------- Run | Scr Mat Min Exi Distress Signals . | . . . . Communications Jammed . | . . . . Distress Signals . | . . . . Times Spotted 26 | . 13 5 8 Peak Tracking Total 9 | . 3 3 9 Tactical Retreats 2 | . 1 1 . Traps | -11 -10 -10 -10 ------- Run | Scr Mat Min Exi Traps Triggered 1 | . 1 . . Indirectly . | . . . . Trap Hack Attempts . | . . . . Triggered . | . . . . Disarmed . | . . . . Reprogrammed . | . . . . Reused . | . . . . Traps Extracted . | . . . . Installed . | . . . . Triggered . | . . . . Machines | -11 -10 -10 -10 ---------- Run | Scr Mat Min Exi Machines Disabled 5 | . . . 5 Max in Single Turn 2 | . . . 2 Machines Sabotaged . | . . . . Garrisons Compromised . | . . . . Overloaded Fab Kills . | . . . . Hacking | -11 -10 -10 -10 --------- Run | Scr Mat Min Exi Machines Accessed 5 | . 4 . 1 Terminals 3 | . 3 . . Fabricators . | . . . . Repair Stations . | . . . . Recycling Units 1 | . 1 . . Scanalyzers . | . . . . Garrison Access . | . . . . Total Hacks 12 | . 11 . 1 Successful 5 | . 4 . 1 Failed 7 | . 7 . . Catastrophic 2 | . 2 . . Database Lockouts . | . . . . Manual 10 | . 9 . 1 Terminals 9 | . 9 . . Fabricators . | . . . . Repair Stations . | . . . . Recycling Units 2 | . 2 . . Scanalyzers . | . . . . Garrison Access . | . . . . Terminal Hacks 1 | . . . 1 EX-Prototype ID Bank 1 | . . . 1 Fabricator Hacks . | . . . . Repair Station Hacks . | . . . . Recycling Unit Hacks 2 | . 2 . . Recycle Component 1 | . 1 . . Report Inventory 1 | . 1 . . Scanalyzer . | . . . . Garrison Access Hacks . | . . . . Unauthorized Hacks 2 | . 2 . . Terminals 2 | . 2 . . Botnet 1 | . 1 . . Operators 1 | . 1 . . Fabricators . | . . . . Repair Stations . | . . . . Recycling Units . | . . . . Scanalyzers . | . . . . Garrison Access . | . . . . Data Cores Recovered . | . . . . Used . | . . . . Hacking Detections 3 | . 3 . . Full Trace Events 2 | . 2 . . Feedback Events . | . . . . Feedback Blocked . | . . . . Robot Schematics Acquired . | . . . . Robots Built . | . . . . Authchips . | . . . . Time . | . . . . Total Robot Build Rating . | . . . . Part Schematics Acquired . | . . . . Parts Built . | . . . . Authchips . | . . . . Time . | . . . . Total Part Build Rating . | . . . . Parts Repaired . | . . . . Time . | . . . . Parts Recycled 1 | . 1 . . Recycled Matter . | . . . . Retrieved Matter . | . . . . Retrieved Components . | . . . . Parts Scanalyzed . | . . . . Part Schematics Acquired . | . . . . Parts Damaged . | . . . . Bothacking | -11 -10 -10 -10 ------------ Run | Scr Mat Min Exi Used RIF Installer . | . . . . Robots Hacked . | . . . . Non-combat . | . . . . Combat . | . . . . Robot Hacks Applied . | . . . . Relay Couplers Released . | . . . . Fabnet Peak Effective % . | . . . . Robots Rewired . | . . . . Allies Hacked . | . . . . Hacks Repelled . | . . . . Allies | -11 -10 -10 -10 -------- Run | Scr Mat Min Exi Total Allies . | . . . . Largest Group . | . . . . Highest-Rated Group . | . . . . Highest-Rated Ally . | . . . . Total Orders . | . . . . Ally Attacks . | . . . . Total Damage . | . . . . Kills . | . . . . Allies Corrupted . | . . . . Allies Melted . | . . . . Intel | -11 -10 -10 -10 ------- Run | Scr Mat Min Exi Robot Analysis Total . | . . . . Derelict Logs Recovered 2 | . . 2 . Drone Launches . | . . . . Drone Recoveries . | . . . . Exploration | -11 -10 -10 -10 ------------- Run | Scr Mat Min Exi Turns Passed 1833 | . 1218 232 383 Spaces Moved 941 | 1 600 136 204 Core . | . . . . Treads 701 | . 361 136 204 Legs 240 | 1 239 . . Wheels . | . . . . Hover . | . . . . Flight . | . . . . Fastest Speed 120 | 120 120 160 160 Average Speed 167 | 120 171 160 160 Slowest Speed 240 | 120 190 160 240 Overloaded Moves . | . . . . Propulsion Burnouts . | . . . . Robots Hopped . | . . . . Cave-ins Triggered . | . . . . Exploration Rate (%) 44 | 2 95 39 42 Regions Visited 3 Branch Regions 2 Pre-discovered Areas 1 | . . 1 . Known Exits Taken . | . . . . Unknown Exits Taken 3 | 1 1 1 . Scrap Searched . | . . . . Spaces Dug . | . . . . Terrain Destroyed 54 | . . 28 26 Melee . | . . . . Projectile . | . . . . AOE 54 | . . 28 26 Terrain Rammed . | . . . . Walls Destroyed . | . . . . Machines Disabled . | . . . . Actions | -11 -10 -10 -10 --------- Run | Scr Mat Min Exi Total 1122 | . 735 144 243 Wait 54 | . 45 . 9 Move 938 | . 599 135 204 Hop . | . . . . Pick Up 29 | . 25 1 3 Fast Attach 3 | . 3 . . Attach 7 | . 3 . 4 Detach 2 | . . . 2 Swap 13 | . 5 4 4 Drop 25 | . 18 1 6 Fire 51 | . 37 3 11 Melee . | . . . . Ram . | . . . . Kick . | . . . . Crush . | . . . . Escape Stasis . | . . . . Rewire . | . . . . Trap . | . . . . Miscellaneous . | . . . . Route ------- -11/Scrapyard -10/Materials (discovered 4 exits: [*Mat x3] / [*Min]) -10/Mines -10/Exiles History --------- Turn | Location | Event 1 | -11/Scrapyard | Discovered new exit (range 0) 1 | -11/Scrapyard | Entered Materials 307 | -10/Materials | Build established: Mutant 457 | -10/Materials | Discovered new exit (range 10) 633 | -10/Materials | Discovered new exit (range 16) 806 | -10/Materials | Discovered new exit (range 10) 1028 | -10/Materials | Discovered new exit (range 12) 1219 | -10/Materials | Entered Mines 1226 | -10/Mines | Received a Rocket Launcher from a helpful Derelict 1250 | -10/Mines | Learned 2 Materials zone layouts 1252 | -10/Mines | Assembled infested the area 1257 | -10/Mines | Assisted by a Guerilla fighting off Assembled 1381 | -10/Mines | Learned Materials garrison access intel 1382 | -10/Mines | Learned location of Storage (-7) 1445 | -10/Mines | Deemed a non-threat by the Exiles lab entrance 1445 | -10/Mines | Discovered new exit (range 5) 1451 | -10/Mines | Entered Exiles 1490 | -10/Exiles | Met 8R-AWN 1515 | -10/Exiles | Met EX-HEX 1565 | -10/Exiles | Met EX-BIN 1594 | -10/Exiles | Aligned with FarCom system 1595 | -10/Exiles | Given EX-Vault access code 1632 | -10/Exiles | Opened EX-Vault 1659 | -10/Exiles | Attacked by the Exiles 1706 | -10/Exiles | Destroyed 7 combat bots 1717 | -10/Exiles | Found AWS/Gauss 1756 | -10/Exiles | Core integrity fell below 50% 1769 | -10/Exiles | Core integrity fell below 20% 1785 | -10/Exiles | Found Army-in-a-Box 1834 | -10/Exiles | Lost 3 parts (2n1w) 1834 | -10/Exiles | Destroyed by 8R-AWN with 8R-AWN's Boregun Last Messages --------------- 01803_ Imp. Treads destroyed. 01803_ HV Slug penetrates Wall. 01805_ System corrupted: Energy discharge (-60). 01807_ The unstable cave ceiling collapses. 01807_ Penetrated by HV Slug. 01807_ HV Slug penetrates Wall. 01807_ Penetrated by HV Slug. 01807_ HV Slug penetrates Wall. 01811_ Penetrated by HV Slug. 01811_ HV Slug penetrates Earth. 01811_ HV Slug penetrates Wall. 01816_ Penetrated by HV Slug. 01816_ HV Slug penetrates Wall. 01816_ Penetrated by HV Slug. 01816_ HV Slug penetrates Wall. 01820_ Penetrated by HV Slug. 01822_ Acquired Lgt. Treads. 01824_ Penetrated by HV Slug. 01828_ HV Slug penetrates Wall. 01834_ Penetrated by HV Slug. Map ----- +----------------------------------------------------+ | ???????????????????????# ! #?????????????????? | | ???????????????????????#[ #?????????????????? | | ???????????????????????#] #?????????????????? | | ???????????????????????#] X#?????????????????? | | ???????????????????????## ##?????????????????? | | ???????????????????????#X #??????????????????? | | ???????????????????????## #??????????????????? | | ????????????????????????# #??????????????????? | | ????????????????????????# #???####???????????? | | ????????????????????????# #??"""""#??????????? | | ????????????????????????# ## """#??????????? | | ????????????????????????# X""#??????????? | | ???????????????????????## ## """#??????????? | | ?????????????????####### #??"""""#??????????? | | ????????????????#"""""" #???###????????????? | | ????????????????#"" # #??????????????????? | | ????????????????#" #??????????????????? | | ????????????????#" #??????????????????? | | ????????????????# #??????????????????? | | ????????????????#"" # = #?#########????????? | | ????????????????##"# # ## = #?#"""""""#????????? | | ???????????????? "#####; #?#"""""""#????????? | | ???????????????"""??????# #?#"""""""#????????? | | ???????????????????????## # #"" """"#????????? | | ???????????????????????#" """"#????????? | | ???????????????????????#"@ """#????????? | | ???????????????????????#" """#????????? | | ???????????????????????# """#????????? | | ???????????????????????#" """#????????? | | ???????????????????????# """#????????? | | ???????????????????????# """"????????? | | ???????????????????????# """#????????? | | ???????????????????????# X" """?????????? | | ???????????????????????# "" ?????????? | | ???????????????????????## """""""?????????? | | ???????????????????????# #######????????? | | ??????????????????????##"" #####??????????????? | | ???????????????????####"" #??????????????????? | | ??????????????????""""""" ##?????????????????? | | ?????????????????""" " "" ##???###########??? | | ???????????????" """ " #####"""""""""##?? | | ???????????????" " " """ """"##? | | ???????????? "" " #? | | ???????????? " """#? | | ????????????? " "#? | | ????????????? " "## | | ?????????????? ""# | | ?????????????? """""" "" | | ?????????????? ######""" | | ??????????????? ""#?????#####""" | +----------------------------------------------------+ Best States ------------- Heat Dissipation 25 Energy Generation 10 Energy Capacity 250 Matter Stores 300 Matter Capacity 300 Sight Range 16 Terrain Scan Density 10 Weapon Shielding 33 Evasion (%) 40 Recoil Reduction 2 Item Schematics ----------------- None Robot Schematics ------------------ None Fabricated ------------ Nothing Alien Tech Used ----------------- None Achievements -------------- None Challenges ------------ None Game ------ Seed MappingThermalSteel Manual? 0 Play Time 00:20:29 Cumulative 88.4 hours Start 2022.05.28 @ 00:02:22 End 2022.05.28 @ 00:20:27 Sessions 1 Manual Loads 0 Difficulty Rogue Special Mode None Game No. 62 Rogue 60 Adventurer 0 Explorer 2 Win Type - Total 0 Types 0/0/0/0/0/0/0/0/0 Lore% 25 Gallery% 33 Achievement% 29 Wizard Run 0 Options --------- ASCII 0 Keyboard 0 Movement Numpad Keybinds 0 Fullscreen 1 Font 18/SmallcapsGlow Map View 76x50 Tactical HUD 1 Map Filters NONE Filters NONE Steam 1 RUN: 81e17327-0b89-4a7d-8360-26ef41667828